bitfinex/quotes_SOLUSD_20250207
["timestamp","ask_amount","ask_price","bid_price","bid_amount"]
[1738958560124,1.02166123,194.63,194.59,41.11429867]
[1738958560286,1.02166123,194.63,194.61,41.11429867]
[1738958560809,1.02166123,194.63,194.62,41.11429867]
[1738958561106,1.02166123,194.63,194.62,71.11429867]
[1738958561316,1.02166123,194.63,194.62,46.25249867]
[1738958561819,1.02166123,194.63,194.62,84.37049867]
[1738958562122,2.5668,194.79,194.73,41.11429867]
[1738958562421,0.03,194.8,194.65,30.0]
[1738958562628,2.5967,194.8,194.65,30.0]
[1738958562914,20.0,194.76,194.62,13.2562]
[1738958563200,20.0,194.76,194.64,41.11429867]
[1738958563201,2.568,194.71,194.64,41.11429867]
[1738958563408,41.11429867,194.72,194.64,41.11429867]
[1738958564185,41.11429867,194.69,194.62,8.118]
[1738958564391,41.11429867,194.67,194.62,8.118]
[1738958565015,41.11429867,194.68,194.62,8.118]
[1738958565215,41.11429867,194.67,194.59,41.11429867]
[1738958565504,41.11429867,194.67,194.6,41.11429867]
[1738958565913,41.11429867,194.69,194.61,41.11429867]
[1738958566106,41.11429867,194.69,194.62,41.11429867]
[1738958566312,41.11429867,194.7,194.62,41.11429867]
[1738958566815,43.68199867,194.72,194.65,41.11429867]
[1738958566992,2.5677,194.72,194.65,41.11429867]
[1738958567192,2.5681,194.69,194.62,41.11429867]
[1738958567702,41.11429867,194.68,194.6,41.11429867]
[1738958567904,41.11429867,194.66,194.58,46.25349867]
[1738958568096,2.5681,194.69,194.57,8.2235]
[1738958568097,41.11429867,194.64,194.57,8.2235]
[1738958568303,41.11429867,194.64,194.57,13.3629]
[1738958568510,41.11429867,194.67,194.6,41.11429867]
[1738958568813,41.11429867,194.7,194.6,30.0]
[1738958569019,41.11429867,194.72,194.64,41.11429867]
[1738958569504,43.68209867,194.72,194.64,41.11429867]
[1738958570697,25.33087284,194.71,194.63,25.33087284]
[1738958571504,27.89887284,194.71,194.63,30.46867284]
[1738958571700,25.33087284,194.72,194.65,25.33087284]
[1738958571943,25.33087284,194.74,194.66,25.33087284]
[1738958572418,1.6452,194.78,194.63,5.1378]
[1738958572419,25.33087284,194.72,194.65,25.33087284]
[1738958572918,25.33087284,194.72,194.64,25.33087284]
[1738958573313,27.89867284,194.72,194.64,30.46837284]
[1738958573614,25.33087284,194.66,194.6,25.33087284]
[1738958573813,25.33087284,194.66,194.58,30.47007284]
[1738958574695,43.74712317,194.67,194.59,41.17862317]
[1738958575017,43.74712317,194.67,194.58,46.31782317]
[1738958575018,41.17862317,194.65,194.58,46.31782317]
[1738958575515,41.17862317,194.64,194.57,8.2235]
[1738958575897,41.17862317,194.64,194.57,13.3629]
[1738958576099,41.17862317,194.65,194.57,54.54152317]
[1738958576898,2.5688,194.64,194.57,54.54152317]
[1738958577423,2.5688,194.64,194.58,41.17862317]
[1738958577716,2.5688,194.64,194.57,54.54152317]
[1738958577920,41.17862317,194.62,194.57,8.2235]
[1738958578309,41.17862317,194.62,194.57,1.6105]
[1738958578818,41.17862317,194.6,194.55,0.063]
[1738958579595,41.17862317,194.59,194.55,0.063]
[1738958579802,41.17862317,194.57,194.55,0.063]
[1738958580010,41.17862317,194.62,194.55,0.063]
[1738958580214,41.17862317,194.64,194.57,41.17862317]
[1738958580410,2.5687,194.65,194.58,41.17862317]
[1738958580925,0.03,194.64,194.58,41.17862317]
[1738958581110,41.17862317,194.63,194.56,41.17862317]
[1738958581312,0.03,194.64,194.55,0.063]
[1738958581313,41.17862317,194.59,194.55,0.063]
[1738958581623,41.17862317,194.58,194.55,0.063]
[1738958581800,43.74832317,194.58,194.55,0.063]
[1738958582001,41.17862317,194.57,194.55,0.063]
[1738958582402,43.74832317,194.58,194.55,0.063]
[1738958582928,41.17862317,194.56,194.55,0.063]
[1738958583927,43.74852317,194.56,194.55,0.063]
[1738958584731,2.5699,194.56,194.55,0.063]
[1738958585213,43.74852317,194.56,194.55,0.063]
[1738958587138,1.5473,194.63,194.55,0.063]
[1738958587443,41.17862317,194.58,194.55,0.063]
[1738958587733,41.17862317,194.57,194.55,0.063]
[1738958588026,43.74852317,194.56,194.55,0.063]
[1738958589527,2.5699,194.56,194.55,0.063]
[1738958591544,41.17862317,194.56,194.55,0.063]
[1738958593637,43.74852317,194.56,194.55,0.063]
[1738958593949,43.99950317,194.56,194.55,0.0001]
[1738958594489,58.4113517,194.56,194.55,0.0001]
[1738958594833,58.4113517,194.56,194.47,13.0154366]
[1738958594834,20.0,194.51,194.47,13.0154366]
[1738958595039,25.39119934,194.48,194.47,13.0154366]
[1738958595632,27.96209934,194.48,194.47,3.66e-05]
[1738958596034,25.39119934,194.4,194.32,33.67109934]
[1738958596232,25.39119934,194.4,194.33,25.39119934]
[1738958596641,25.39119934,194.4,194.35,0.063]
[1738958596952,25.39119934,194.38,194.35,0.063]
[1738958597156,25.39119934,194.44,194.36,25.39119934]
[1738958597454,1.0,194.48,194.36,7.9046]
[1738958597657,13.66282853,194.43,194.31,15.86459725]
[1738958597833,14.66282853,194.43,194.31,15.86459725]
[1738958598035,1.0,194.45,194.31,15.86459725]
[1738958598036,1.0,194.46,194.31,15.86459725]
[1738958598247,1.0,194.44,194.31,15.86459725]
[1738958598446,1.0,194.43,194.31,15.86459725]
[1738958598760,25.39119934,194.34,194.31,9.46189725]
[1738958598961,25.39119934,194.32,194.26,6.1784]
[1738958599670,25.39119934,194.34,194.26,6.1784]
[1738958599866,25.39119934,194.34,194.26,31.56959934]
[1738958600570,2.5722,194.38,194.26,31.56959934]
[1738958600571,25.39119934,194.32,194.26,6.1784]
[1738958601061,25.39119934,194.33,194.26,6.1784]
[1738958601260,6.4014,194.39,194.26,6.1784]
[1738958601261,25.39119934,194.32,194.26,6.1784]
[1738958601658,6.4014,194.39,194.26,6.1784]
[1738958601659,25.39119934,194.33,194.26,6.1784]
[1738958601862,25.39119934,194.37,194.3,25.39119934]
[1738958602164,25.39119934,194.39,194.31,25.39119934]
[1738958602464,25.39119934,194.37,194.3,25.39119934]
[1738958602667,25.39119934,194.37,194.29,25.39119934]
[1738958602965,25.39119934,194.33,194.26,6.1784]
[1738958603261,25.39119934,194.31,194.26,6.1784]
[1738958603451,25.39119934,194.36,194.29,25.39119934]
[1738958603660,25.39119934,194.36,194.28,25.39119934]
[1738958603866,25.39119934,194.29,194.21,6.3595]
[1738958604164,1.0,194.33,194.21,6.3595]
[1738958604368,25.39119934,194.27,194.21,6.3595]
[1738958604539,25.39119934,194.26,194.21,6.3595]
[1738958604739,25.39119934,194.25,194.21,6.3595]
[1738958604943,25.39119934,194.24,194.2,1.6018]
[1738958605156,25.39119934,194.23,194.17,6.3595]
[1738958605562,25.39119934,194.2,194.15,1.6018]
[1738958605870,26.93609934,194.19,194.15,1.6018]
[1738958606368,26.93609934,194.19,194.07,5.1526]
[1738958606369,1.5449,194.19,194.07,5.1526]
[1738958606752,1.5449,194.19,194.08,0.206]
[1738958607064,1.0,194.16,194.08,0.206]
[1738958607369,25.39119934,194.09,194.08,0.206]
[1738958607661,25.39119934,194.11,194.08,0.206]
[1738958607865,25.39119934,194.13,194.08,0.206]
[1738958608052,25.39119934,194.14,194.08,0.206]
[1738958608364,25.39119934,194.17,194.09,25.39119934]
[1738958608564,25.39119934,194.21,194.13,25.39119934]
[1738958608868,42.91411635,194.24,194.17,41.36961635]
[1738958609070,41.36961635,194.25,194.18,41.36961635]
[1738958609242,3.8598,194.31,194.2,41.36961635]
[1738958609443,1.5441,194.29,194.2,41.36961635]
[1738958609669,41.36961635,194.28,194.21,41.36961635]
[1738958609881,41.36961635,194.22,194.13,5.1511]
[1738958610171,20.12549,194.25,194.1,1.6276]
[1738958610365,20.0,194.25,194.1,6.7795]
[1738958610662,20.0,194.21,194.1,1.6276]
[1738958610846,13.66282853,194.24,194.1,1.6276]
[1738958610847,20.0,194.22,194.1,1.6276]
[1738958611050,21.0,194.22,194.11,0.148]
[1738958611251,41.36961635,194.14,194.11,0.148]
[1738958611457,41.36961635,194.12,194.11,0.148]
[1738958611850,13.41184853,194.18,194.11,0.148]
[1738958611851,41.36961635,194.13,194.11,0.148]
[1738958612451,41.36961635,194.12,194.11,0.148]
[1738958612971,41.36961635,194.13,194.11,0.148]
[1738958613551,41.36961635,194.12,194.11,0.148]
[1738958613776,42.91501635,194.12,194.11,0.148]
[1738958613960,20.0,194.1,194.09,0.206]
[1738958614152,116.15108123,194.1,194.09,0.206]
[1738958614561,102.7392327,194.1,194.09,0.206]
[1738958614776,61.36961635,194.1,194.09,0.206]
[1738958615192,74.78146488,194.1,194.09,0.206]
[1738958615781,76.32696488,194.1,194.09,0.206]
[1738958615954,62.91511635,194.1,194.09,0.206]
[1738958616261,1.5455,194.1,194.09,0.206]
[1738958616463,41.36961635,194.1,194.09,0.206]
[1738958616999,41.36961635,194.11,194.09,0.206]
[1738958617282,41.36961635,194.12,194.09,0.206]
[1738958617855,1.5452,194.15,194.09,41.57561635]
[1738958618072,1.5452,194.15,194.1,41.36961635]
[1738958618293,42.91451635,194.18,194.11,41.36961635]
[1738958619074,41.36961635,194.17,194.1,41.36961635]
[1738958619277,41.36961635,194.13,194.09,6.5681]
[1738958619497,41.36961635,194.11,194.09,0.13985236]
[1738958619668,41.36961635,194.1,194.09,0.13985236]
[1738958619977,42.91511635,194.1,194.09,0.13985236]
[1738958620561,97.69658123,194.1,194.09,0.13985236]
[1738958620780,56.32696488,194.1,194.09,0.13985236]
[1738958621087,42.91511635,194.1,194.09,0.13985236]
[1738958621269,1.5455,194.1,194.09,0.13985236]
[1738958622162,41.36961635,194.12,194.05,41.36961635]
[1738958622365,41.36961635,194.16,194.09,41.43544144]
[1738958622577,41.36961635,194.14,194.09,0.06582509]
[1738958622955,41.36961635,194.13,194.09,0.06582509]
[1738958623287,41.36961635,194.14,194.09,0.06582509]
[1738958623777,41.36961635,194.15,194.09,0.06582509]
[1738958623979,41.36961635,194.17,194.1,41.36961635]
[1738958624182,41.36961635,194.18,194.11,41.36961635]
[1738958624489,41.36961635,194.12,194.08,6.0324]
[1738958624658,41.36961635,194.09,194.04,6.0324]
[1738958625377,41.36961635,194.08,194.04,6.0324]
[1738958625584,41.36961635,194.09,194.04,6.0324]
[1738958625879,41.36961635,194.08,194.04,6.0324]
[1738958626183,41.36961635,194.09,194.04,6.0324]
[1738958626382,61.36961635,194.1,194.04,6.0324]
[1738958626684,41.36961635,194.08,194.04,6.0324]
[1738958626884,41.36961635,194.07,194.02,1.6038]
[1738958627086,20.0,194.1,193.99,6.5864]
[1738958627087,41.36961635,194.05,193.99,6.5864]
[1738958627282,41.36961635,194.04,193.99,6.5864]
[1738958627687,41.36961635,194.05,193.99,6.5864]
[1738958628169,42.91551635,194.06,193.99,47.95601635]
[1738958628379,41.36961635,194.05,193.99,6.5864]
[1738958628685,1.5459,194.06,193.96,1.5468]
[1738958628686,41.36961635,194.0,193.96,1.5468]
[1738958628872,33.41184853,194.04,193.96,1.5468]
[1738958629072,41.36961635,193.97,193.94,6.5864]
[1738958629280,20.0,194.01,193.94,6.5864]
[1738958629702,41.36961635,193.98,193.94,6.5864]
[1738958630001,41.36961635,193.97,193.94,6.5864]
[1738958630300,40.86961635,193.97,193.94,6.5864]
[1738958630683,25.52340559,193.97,193.92,1.6032]
[1738958632083,25.52340559,194.0,193.93,25.52340559]
[1738958632291,25.52340559,194.04,193.97,25.52340559]
[1738958632592,0.03,194.05,194.01,25.52340559]
[1738958633080,0.03,194.05,194.0,25.52340559]
[1738958633477,0.03,194.05,194.01,25.52340559]
[1738958634092,25.55340559,194.05,194.0,6.1279]
[1738958634583,25.55340559,194.05,193.97,25.52340559]
[1738958634584,25.52340559,194.04,193.97,25.52340559]
[1738958634785,41.44701176,194.03,193.96,41.44701176]
[1738958635009,41.44701176,194.03,193.97,41.44701176]
[1738958635303,41.47701176,194.05,193.98,41.44701176]
[1738958635481,0.03,194.05,193.99,41.44701176]
[1738958635677,0.03,194.05,193.98,41.44701176]
[1738958635678,41.47701176,194.05,193.98,41.44701176]
[1738958635997,41.47701176,194.05,193.95,11.8152]
[1738958635998,41.47701176,194.05,193.97,41.44701176]
[1738958636176,42.99301176,194.04,193.97,41.44701176]
[1738958636593,41.44701176,194.02,193.95,48.10631176]
[1738958636879,41.44701176,194.02,193.96,41.44701176]
[1738958637086,42.99301176,194.04,193.97,41.44701176]
[1738958637275,0.03,194.05,194.0,41.44701176]
[1738958637475,0.03,194.05,193.95,11.8151]
[1738958637476,0.03,194.05,193.99,41.44701176]
[1738958637697,41.44701176,194.04,193.97,41.44701176]
[1738958638090,42.99311176,194.04,193.97,41.44701176]
[1738958638293,41.44701176,194.03,193.96,41.44701176]
[1738958638985,42.99311176,194.04,193.97,41.44701176]
[1738958639584,41.44701176,194.02,193.95,48.10631176]
[1738958639888,41.44701176,194.01,193.95,6.6593]
[1738958640101,41.44701176,194.02,193.95,48.10631176]
[1738958640489,41.44701176,194.01,193.95,48.10631176]
[1738958640690,41.44701176,194.03,193.96,41.44701176]
[1738958641413,41.44701176,194.02,193.96,41.44701176]
[1738958641613,41.44701176,194.02,193.95,48.10631176]
[1738958641823,41.44701176,194.03,193.96,41.44701176]
[1738958642186,41.44701176,194.03,193.95,11.8151]
[1738958642187,42.99301176,194.04,193.97,41.44701176]
[1738958642385,41.44701176,194.03,193.96,41.44701176]
[1738958642585,41.44701176,194.03,193.95,11.8151]
[1738958642586,1.576,194.05,194.0,41.44701176]
[1738958642986,0.03,194.05,194.0,41.44701176]
[1738958644717,41.47701176,194.05,193.99,0.063]
[1738958644895,41.44701176,194.01,193.99,0.063]
[1738958645105,41.44701176,194.02,193.99,0.063]
[1738958645306,41.47701176,194.05,193.99,0.063]
[1738958645508,0.03,194.05,193.99,41.51001176]
[1738958645714,0.03,194.05,193.99,0.063]
[1738958646090,41.44701176,194.04,193.99,0.063]
[1738958646604,1.576,194.05,193.99,41.51001176]
[1738958646804,41.44701176,194.04,193.99,0.063]
[1738958647007,41.44701176,194.03,193.99,0.063]
[1738958647200,41.44701176,194.04,193.99,0.063]
[1738958647894,42.99311176,194.04,193.99,0.063]
[1738958649102,0.03,194.05,194.0,41.44701176]
[1738958649299,0.03,194.05,194.01,41.44701176]
[1738958649499,0.03,194.05,194.0,41.44701176]
[1738958649897,0.03,194.05,193.99,41.51001176]
[1738958650096,41.44701176,194.03,193.99,0.063]
[1738958650401,41.44701176,194.02,193.99,0.063]
[1738958650609,41.44701176,194.03,193.99,0.063]
[1738958651205,1.5462,194.02,193.99,0.063]
[1738958651518,42.99321176,194.02,193.99,0.063]
[1738958651890,41.44701176,194.0,193.99,0.063]
[1738958652612,41.44701176,194.04,193.99,0.063]
[1738958652817,0.03,194.05,194.0,41.44701176]
[1738958653023,0.03,194.05,194.01,41.44701176]
[1738958653198,0.03,194.05,194.0,41.44701176]
[1738958653521,41.44701176,194.04,193.99,0.063]
[1738958653691,41.47701176,194.05,193.99,0.063]
[1738958653896,0.03,194.05,194.03,41.44701176]
[1738958654306,0.03,194.05,194.02,42.96691176]
[1738958654507,0.03,194.05,194.02,1.5199]
[1738958655003,41.44701176,194.04,193.99,0.063]
[1738958655204,1.546,194.04,193.99,0.063]
[1738958655524,0.03,194.05,194.0,41.44701176]
[1738958656105,0.03,194.05,193.99,0.063]
[1738958656106,41.47701176,194.05,193.99,0.063]
[1738958656318,1.576,194.05,193.99,41.51001176]
[1738958656715,25.49932191,194.04,193.99,0.063]
[1738958656919,25.49932191,194.03,193.99,0.063]
[1738958657221,25.52932191,194.05,193.99,0.063]
[1738958657403,0.03,194.05,194.0,25.49932191]
[1738958658325,0.03,194.05,194.03,25.49932191]
[1738958658508,0.03,194.05,194.04,25.49932191]
[1738958658920,0.03,194.05,194.04,31.94592191]
[1738958659232,0.03,194.05,194.04,38.62512191]
[1738958659533,25.49932191,194.15,194.08,25.49932191]
[1738958659723,25.49932191,194.14,194.07,25.49932191]
[1738958660023,25.49932191,194.13,194.06,25.49932191]
[1738958660197,25.49932191,194.11,194.04,33.47162191]
[1738958660401,25.49932191,194.13,194.06,25.49932191]
[1738958660621,25.49932191,194.12,194.05,25.49932191]
[1738958661829,27.04482191,194.12,194.05,25.49932191]
[1738958662068,25.49932191,194.1,194.04,7.9723]
[1738958664542,25.49932191,194.09,194.04,7.9723]
[1738958664736,25.49932191,194.11,194.05,25.49932191]
[1738958665040,25.49932191,194.13,194.06,25.49932191]
[1738958665335,27.04432191,194.17,194.11,25.49932191]
[1738958665732,25.49932191,194.15,194.09,25.49932191]
[1738958665944,25.49932191,194.15,194.08,25.49932191]
[1738958666155,25.49932191,194.16,194.09,25.49932191]
[1738958666355,25.49932191,194.17,194.1,25.49932191]
[1738958666534,25.49932191,194.19,194.12,25.49932191]
[1738958667148,25.49932191,194.18,194.11,25.49932191]
[1738958667356,25.49932191,194.17,194.1,25.49932191]
[1738958667662,25.49932191,194.12,194.05,25.49932191]
[1738958668040,25.49932191,194.09,194.04,7.9723]
[1738958668243,27.04492191,194.09,194.04,7.9723]
[1738958668769,25.49932191,194.09,194.04,7.9723]
[1738958668934,27.04482191,194.11,194.04,33.47162191]
[1738958669135,25.49932191,194.11,194.04,38.62512191]
[1738958670051,25.49932191,194.15,194.08,25.49932191]
[1738958670264,25.49932191,194.17,194.1,25.49932191]
[1738958670461,27.04432191,194.18,194.11,25.49932191]
[1738958671167,4.86,194.2,194.13,25.49932191]
[1738958671168,25.49932191,194.2,194.13,25.49932191]
[1738958671472,27.04402191,194.21,194.14,25.49932191]
[1738958671767,27.04402191,194.21,194.09,25.49932191]
[1738958671768,25.49932191,194.16,194.09,25.49932191]
[1738958671970,1.5447,194.21,194.05,18.0365]
[1738958671971,25.49932191,194.14,194.08,25.49932191]
[1738958672266,15.98481567,194.14,194.08,25.49932191]
[1738958672468,25.49932191,194.13,194.06,25.49932191]
[1738958672674,27.04452191,194.14,194.07,25.49932191]
[1738958673139,27.04442191,194.16,194.1,25.49932191]
[1738958673350,27.04432191,194.18,194.11,25.49932191]
[1738958673556,27.04432191,194.18,194.12,25.49932191]
[1738958673749,27.04432191,194.18,194.11,25.49932191]
[1738958674460,27.04432191,194.18,194.12,25.49932191]
[1738958674858,1.545,194.18,194.12,25.49932191]
[1738958675367,25.49932191,194.16,194.09,25.49932191]
[1738958675559,25.49932191,194.15,194.08,25.49932191]
[1738958675759,25.49932191,194.17,194.1,25.49932191]
[1738958676145,27.04432191,194.18,194.11,25.49932191]
[1738958677179,25.49932191,194.16,194.09,30.65152191]
[1738958677689,25.49932191,194.17,194.1,25.49932191]
[1738958677852,1.545,194.18,194.11,25.49932191]
[1738958678282,25.49932191,194.18,194.11,25.49932191]
[1738958679277,25.49932191,194.18,194.11,30.65082191]
[1738958679454,25.49932191,194.17,194.11,5.1515]
[1738958679651,25.49932191,194.17,194.1,25.49932191]
[1738958679858,25.49932191,194.14,194.07,25.49932191]
[1738958680163,25.49932191,194.13,194.06,25.49932191]
[1738958680381,25.49932191,194.12,194.06,25.49932191]
[1738958680687,15.9254626,194.14,194.07,15.9254626]
[1738958681073,15.9254626,194.12,194.05,21.0787626]
[1738958681466,15.9254626,194.11,194.05,5.1533]
[1738958681791,15.9254626,194.12,194.05,21.0787626]
[1738958682086,0.03,194.16,194.11,15.9254626]
[1738958682379,0.03,194.16,194.11,1.6235]
[1738958682556,0.03,194.16,194.13,31.0]
[1738958682873,0.03,194.25,194.14,1.77229638]
[1738958683067,0.03,194.25,194.19,25.44423911]
[1738958683373,25.44423911,194.24,194.18,25.44423911]
[1738958683577,25.47423911,194.25,194.18,25.44423911]
[1738958683771,25.47423911,194.25,194.19,25.44423911]
[1738958683977,0.03,194.25,194.22,25.44423911]
[1738958684273,0.03,194.25,194.24,25.44423911]
[1738958684482,0.03,194.25,194.23,25.44423911]
[1738958685083,0.03,194.25,194.22,25.44423911]
[1738958685269,25.47423911,194.25,194.19,25.44423911]
[1738958685465,25.44423911,194.23,194.16,25.44423911]
[1738958685766,25.44423911,194.21,194.15,25.44423911]
[1738958685951,0.03,194.25,194.17,32.0]
[1738958686158,0.03,194.25,194.23,25.44423911]
[1738958686572,0.03,194.25,194.22,25.44423911]
[1738958687676,0.03,194.25,194.2,25.44423911]
[1738958687874,25.44423911,194.24,194.19,1.6459]
[1738958688066,25.44423911,194.24,194.17,25.44423911]
[1738958688265,25.44423911,194.24,194.17,30.59423911]
[1738958688867,0.03,194.25,194.19,25.44423911]
[1738958689065,0.03,194.25,194.2,25.44423911]
[1738958689578,0.03,194.25,194.21,25.44423911]
[1738958689778,0.03,194.25,194.22,25.44423911]
[1738958690183,0.03,194.25,194.21,25.44423911]
[1738958690684,0.03,194.25,194.2,25.44423911]
[1738958690870,0.03,194.25,194.22,25.44423911]
[1738958691186,0.03,194.25,194.24,25.44423911]
[1738958691569,0.03,194.25,194.22,25.44423911]
[1738958691783,0.03,194.25,194.24,25.44423911]
[1738958692460,0.03,194.25,194.24,27.03683911]
[1738958692889,0.03,194.35,194.24,27.03683911]
[1738958693090,0.03,194.35,194.34,25.44423911]
[1738958693291,0.03,194.35,194.34,31.61783911]
[1738958693586,0.03,194.39,194.35,18.0086]
[1738958693783,0.03,194.39,194.37,31.0]
[1738958693990,0.03,194.39,194.38,0.77134743]
[1738958694187,0.03,194.39,194.38,26.21558654]
[1738958694773,0.03,194.45,194.39,31.0]
[1738958694968,0.03,194.45,194.43,25.44423911]
[1738958695184,0.03,194.45,194.44,31.0]
[1738958695386,7.8872389,194.58,194.44,55.44423911]
[1738958695702,34.87327801,194.58,194.51,25.44423911]
[1738958696117,25.44423911,194.57,194.5,25.44423911]
[1738958696395,34.87327801,194.58,194.51,25.44423911]
[1738958696791,26.98603911,194.58,194.51,25.44423911]
[1738958697296,26.98603911,194.58,194.45,0.77108691]
[1738958697297,1.5418,194.58,194.47,5.142]
[1738958697483,25.44423911,194.55,194.48,25.44423911]
[1738958697686,1.542,194.54,194.49,25.44423911]
[1738958697884,25.44423911,194.51,194.4,26.21541343]
[1738958698088,13.53733853,194.53,194.38,5.1443]
[1738958698282,20.0,194.5,194.37,5.1447]
[1738958698493,13.41184853,194.49,194.37,5.1447]
[1738958698688,0.12549,194.48,194.34,7.8061]
[1738958698896,13.41184853,194.45,194.34,7.8061]
[1738958699196,25.44423911,194.39,194.32,25.44423911]
[1738958699379,25.44423911,194.39,194.33,25.44423911]
[1738958699780,25.44423911,194.36,194.29,25.44423911]
[1738958699981,1.5432,194.4,194.26,1.6162]
[1738958699982,25.44423911,194.33,194.26,25.44423911]
[1738958700188,25.44423911,194.3,194.23,25.44423911]
[1738958700394,20.0,194.36,194.21,11.4972]
[1738958700575,30.84543911,194.4,194.22,0.77212414]
[1738958700782,20.0,194.37,194.21,12.26918393]
[1738958701109,0.12549,194.35,194.19,5.1493]
[1738958701396,20.0,194.33,194.18,1.6162]
[1738958701603,13.53733853,194.32,194.18,1.6162]
[1738958701808,25.44423911,194.29,194.22,25.44423911]
[1738958701991,26.98803911,194.33,194.26,25.44423911]
[1738958702305,1.5436,194.35,194.29,25.44423911]
[1738958702498,1.5436,194.35,194.3,25.44423911]
[1738958702796,1.5436,194.35,194.22,5.1487]
[1738958702988,20.0,194.33,194.2,5.1491]
[1738958703502,20.0,194.33,194.18,6.7658]
[1738958703503,13.53733853,194.32,194.18,6.7658]
[1738958703874,25.44423911,194.28,194.22,25.44423911]
[1738958704098,25.44423911,194.29,194.22,25.44423911]
[1738958704307,26.98813911,194.31,194.24,25.44423911]
[1738958704487,18.81554853,194.31,194.2,25.44423911]
[1738958704680,18.81554853,194.31,194.12,62.16]
[1738958704681,0.12549,194.29,194.12,61.16]
[1738958705088,13.41184853,194.27,194.12,61.16]
[1738958705292,13.41184853,194.27,194.13,0.77236749]
[1738958705483,20.0,194.28,194.12,62.93236404]
[1738958705683,25.44423911,194.23,194.16,25.44423911]
[1738958705883,25.44423911,194.19,194.13,25.44423911]
[1738958706099,25.44423911,194.17,194.11,25.44423911]
[1738958706488,25.44423911,194.17,194.1,26.94433911]
[1738958706803,25.44423911,194.15,194.08,25.44423911]
[1738958707007,25.44423911,194.16,194.09,25.44423911]
[1738958707499,25.44423911,194.18,194.11,25.44423911]
[1738958707701,25.44423911,194.17,194.1,25.44423911]
[1738958708077,25.44423911,194.16,194.09,25.44423911]
[1738958708282,25.44423911,194.18,194.11,25.44423911]
[1738958708478,25.44423911,194.19,194.12,25.44423911]
[1738958708704,1.5447,194.2,194.14,41.38063418]
[1738958709004,1.5447,194.2,194.15,41.38063418]
[1738958709377,13.41184853,194.19,194.04,5.2165]
[1738958709578,5.4066,194.2,194.04,5.2165]
[1738958709579,25.4066,194.2,194.04,5.2165]
[1738958709881,41.18063418,194.14,194.07,41.38063418]
[1738958710701,41.38063418,194.13,194.06,41.38063418]
[1738958711080,41.38063418,194.14,194.07,41.38063418]
[1738958711305,41.38063418,194.14,194.04,41.44363418]
[1738958711306,20.0,194.14,194.04,41.44363418]
[1738958711501,41.38063418,194.1,194.04,0.063]
[1738958712188,41.38063418,194.09,194.04,0.063]
[1738958712396,41.38063418,194.08,194.04,0.063]
[1738958712604,42.92613418,194.11,194.04,41.44363418]
[1738958712788,1.5455,194.11,194.05,41.38063418]
[1738958712993,1.5455,194.11,194.06,41.38063418]
[1738958713285,1.5452,194.14,194.09,41.38063418]
[1738958713588,13.41184853,194.13,194.06,41.38063418]
[1738958713819,1.5454,194.12,194.06,41.38063418]
[1738958713984,41.38063418,194.09,194.04,0.063]
[1738958714187,41.38063418,194.06,194.04,0.063]
[1738958715505,41.38063418,194.05,194.04,0.063]
[1738958715722,54.79248271,194.05,194.04,0.063]
[1738958715908,56.46387271,194.05,194.04,0.0001]
[1738958716214,56.58936271,194.05,194.04,0.0001]
[1738958716707,61.36936271,194.05,194.04,0.0001]
[1738958716899,62.36936271,194.05,194.04,0.0001]
[1738958717885,61.36936271,194.05,194.04,0.0001]
[1738958718107,20.0,194.02,193.99,0.063]
[1738958718407,21.25098,193.97,193.96,0.0001]
[1738958718603,75.04346271,193.97,193.96,0.0001]
[1738958719479,74.91797271,193.97,193.96,0.0001]
[1738958719680,41.38063418,193.98,193.96,0.0001]
[1738958719893,61.38063418,194.0,193.96,0.0001]
[1738958720310,20.0,194.0,193.96,0.0001]
[1738958720511,41.38063418,193.97,193.96,0.0001]
[1738958720713,55.04346271,193.97,193.96,0.0001]
[1738958722008,56.59006271,193.97,193.96,0.0001]
[1738958723185,56.33908271,193.97,193.96,0.0001]
[1738958723391,1.5466,193.97,193.96,0.0001]
[1738958723584,42.92723418,193.97,193.96,0.0001]
[1738958723784,56.33908271,193.97,193.96,0.0001]
[1738958724206,56.59006271,193.97,193.96,0.0001]
[1738958725525,14.95844853,193.97,193.96,0.0001]